[Event "FIDE WCCC Open-10 2024"]
[Site "Montesilvano"]
[Date "2024.11.22"]
[Round "7.39"]
[White "Tugsbilguun, Davganamdag"]
[Black "Montaigu Dupont, Arthur"]
[Result "1-0"]
[Annotator "NA RC"]
[ECO "B80"]
[WhiteElo "1660"]
[BlackElo "1767"]
[PlyCount "79"]
[EventDate "2024.11.18"]
[EventType "swiss"]
[EventCountry "ITA"]
[SourceTitle "playchess.com"]
[Source "ChessBase"]
[SourceQuality "1"]
[TimeControl "5400+30"]

1. e4 {[%emt 0:00:04]} c5 {[%emt 0:00:02]} 2. Nf3 {[%emt 0:00:08]} e6 {[%emt 0:00:04]} 3. d4 {[%emt 0:00:09]} cxd4 {[%emt 0:00:04]} 4. Nxd4 {[%emt 0:00:05]} Nc6 {[%emt 0:00:04]} 5. Nc3 {[%emt 0:00:25]} Qc7 {[%emt 0:00:04]} 6. g3 {[%emt 0:00:05]} a6 {[%emt 0:00:19]} 7. Bg2 {[%emt 0:00:06]} Nf6 {[%emt 0:06:01]} 8. O-O {[%emt 0:01:14]} Be7 {[%emt 0:05:21]} 9. b3 {[%emt 0:08:10]} O-O {[%emt 0:03:53]} 10. Bb2 {[%emt 0:04:58]} Rb8 {[%emt 0:02:06]} 11. Nce2 {[%emt 0:05:32]} d6 {[%emt 0:00:23]} 12. c4 {[%emt 0:04:11]} Bd7 {[%emt 0:17:45]} 13. Qd2 {[%emt 0:02:25]} Nxd4 {[%emt 0:03:38]} 14. Bxd4 {[%emt 0:05:55]} e5 {[%emt 0:01:38]} 15. Bb2 {[%emt 0:07:38]} b5 {[%emt 0:00:13]} 16. Rac1 {[%emt 0:02:48]} Qb7 {[%emt 0:02:57]} 17. f3 {[%emt 0:05:15]} Rfc8 {[%emt 0:00:28]} 18. cxb5 {[%emt 0:00:57]} Bxb5 {[%emt 0:00:33]} 19. Bh3 {[%emt 0:01:04]} Rxc1 {[%emt 0:11:06]} 20. Rxc1 {[%emt 0:00:11]} Qb6+ {[%emt 0:00:02]} 21. Kg2 {[%emt 0:01:12]} h6 {[%emt 0:07:22]} 22. Nc3 {[%emt 0:03:22]} Rd8 {[%emt 0:01:51]} 23. Nd5 {[%emt 0:04:26]} Nxd5 {[%emt 0:00:30]} 24. Qxd5 {[%emt 0:01:10]} Qe3 {[%emt 0:00:49]} 25. Rc2 {[%emt 0:02:07]} Qe1 {[%emt 0:00:48]} 26. Rf2 {[%emt 0:00:27]} Bg5 {[%emt 0:02:46]} 27. f4 {[%emt 0:03:05]} exf4 {[%emt 0:01:17]} 28. Bg4 {[%emt 0:06:06]} Rf8 {[%emt 0:09:07]} 29. Bh5 {[%emt 0:11:57]} Qe3 {[%emt 0:09:44]} 30. Bd4 {[%emt 0:07:47]} Qc1 {[%emt 0:03:13]} 31. h4 {[%emt 0:00:45]} Bc6 {[%emt 0:01:38]} 32. Qf5 {[%emt 0:00:23]} fxg3 {[%emt 0:01:36]} 33. Bxf7+ {[%emt 0:01:04]} Kh8 {[%emt 0:00:08]} 34. hxg5 {[%emt 0:00:43]} Rxf7 {[%emt 0:04:24]} 35. Qc8+ {[%emt 0:02:44]} Kh7 {[%emt 0:00:13]} 36. g6+ {[%emt 0:00:00]} Kxg6 {[%emt 0:00:07]} 37. Qg4+ {[%emt 0:00:06]} Qg5 {[%emt 0:00:43]} 38. Qe6+ {[%emt 0:00:27]} Rf6 {[%emt 0:00:08]} 39. Bxf6 {[%emt 0:01:01]} gxf6 {[%emt 0:00:17]} 40. Qg8+ {[%emt 0:00:40]} 1-0

[Event "FIDE WCCC Open-10 2024"]
[Site "Montesilvano"]
[Date "2024.11.22"]
[Round "7.40"]
[White "Katta, Sriansh"]
[Black "Grimm, Jakob"]
[Result "1-0"]
[Annotator "NA RC"]
[ECO "B40"]
[WhiteElo "1766"]
[BlackElo "1646"]
[PlyCount "59"]
[EventDate "2024.11.18"]
[EventType "swiss"]
[EventCountry "ITA"]
[SourceTitle "playchess.com"]
[Source "ChessBase"]
[SourceQuality "1"]
[TimeControl "5400+30"]

1. e4 {[%emt 0:00:08]} e5 {[%emt 0:00:03]} 2. Nf3 {[%emt 0:00:05]} Nc6 {[%emt 0:00:04]} 3. d4 {[%emt 0:00:06]} exd4 {[%emt 0:00:05]} 4. Nxd4 {[%emt 0:00:07]} Nf6 {[%emt 0:00:01]} 5. Nxc6 {[%emt 0:00:57]} bxc6 {[%emt 0:00:23]} 6. Bd3 {[%emt 0:00:58]} d5 {[%emt 0:00:34]} 7. exd5 {[%emt 0:00:34]} cxd5 {[%emt 0:01:09]} 8. O-O {[%emt 0:00:11]} c6 {[%emt 0:00:17]} 9. c4 {[%emt 0:03:15]} Bd6 {[%emt 0:10:13]} 10. Re1+ {[%emt 0:03:15]} Be6 {[%emt 0:08:28]} 11. cxd5 {[%emt 0:01:50]} Nxd5 {[%emt 0:01:35]} 12. Qh5 {[%emt 0:07:13]} Nc7 {[%emt 0:14:33]} 13. Nc3 {[%emt 0:06:08]} g6 {[%emt 0:13:03]} 14. Qf3 {[%emt 0:04:50]} Nd5 {[%emt 0:02:22]} 15. Nxd5 {[%emt 0:02:08]} cxd5 {[%emt 0:00:56]} 16. Bb5+ {[%emt 0:00:21]} Kf8 {[%emt 0:00:24]} 17. Rxe6 {[%emt 0:04:00]} Kg7 {[%emt 0:04:04]} 18. Qc3+ {[%emt 0:05:23]} f6 {[%emt 0:00:42]} 19. Bd2 {[%emt 0:02:54]} Rc8 {[%emt 0:01:54]} 20. Qh3 {[%emt 0:00:31]} h5 {[%emt 0:00:20]} 21. Bc3 {[%emt 0:00:25]} Rf8 {[%emt 0:00:16]} 22. Rae1 {[%emt 0:00:14]} d4 {[%emt 0:00:36]} 23. Bxd4 {[%emt 0:03:53]} Bb4 {[%emt 0:02:00]} 24. Bc3 {[%emt 0:00:44]} Bxc3 {[%emt 0:00:09]} 25. bxc3 {[%emt 0:00:04]} Qa5 {[%emt 0:00:09]} 26. Re7+ {[%emt 0:00:43]} Kg8 {[%emt 0:03:28]} 27. Qd7 {[%emt 0:00:28]} Rc7 {[%emt 0:01:27]} 28. Rg7+ {[%emt 0:00:05]} Kh8 {[%emt 0:00:14]} 29. Rh7+ {[%emt 0:00:17]} Kg8 {[%emt 0:00:09]} 30. Bc4+ {[%emt 0:00:39]} 1-0

[Event "FIDE WCCC Open-10 2024"]
[Site "Montesilvano"]
[Date "2024.11.22"]
[Round "7.41"]
[White "Czech, Emil"]
[Black "Nguyen, Huynh Minh Huy"]
[Result "0-1"]
[Annotator "TA"]
[ECO "B29"]
[WhiteElo "1608"]
[BlackElo "2423"]
[PlyCount "52"]
[EventDate "2024.11.18"]
[EventType "swiss"]
[EventCountry "ITA"]
[SourceTitle "playchess.com"]
[Source "ChessBase"]
[SourceQuality "1"]
[TimeControl "5400+30"]

{[%evp 9,52,27,23,9,8,-11,17,16,46,43,38,45,62,53,68,57,84,81,84,33,54,17,75,114,101,98,109,79,86,79,235,0,149,144,148,0,89,-91,-79,-758,-691,-2217,-2194,-1714,-1667]} 1. e4 {[%emt 0:00:01]} c5 {[%emt 0:00:08]} 2. Nf3 {[%emt 0:00:08]} Nf6 {[%emt 0:00:09][%cal Bg8f6,Bf6d5,Bd5f4,Bf4g6,Bg6e7][%mdl 32]} 3. e5 {[%emt 0:00:07]} Nd5 {[%emt 0:00:04]} 4. Nc3 {[%emt 0:00:06]} e6 {[%emt 0:00:18]} 5. Ne4 {[%emt 0:00:21]} Nc6 {[%emt 0:00:36]} 6. Bb5 {[%emt 0:17:36]} f5 {[%emt 0:34:26]} 7. Nc3 {[%emt 0:05:28]} Nf4 {[%emt 0:10:21]} 8. g3 {[%emt 0:08:32] The position is equal.} Ng6 {[%emt 0:00:33]} 9. Bxc6 {[%emt 0:01:16]} bxc6 {[%emt 0:02:09]} 10. d3 {[%emt 0:06:31]} d5 {[%emt 0:13:05]} 11. exd6 {[%emt 0:04:29]} Bxd6 {[%emt 0:00:08]} 12. h4 {[%emt 0:08:12][%cal Bh2h4,Bh4h5][%mdl 32]} h6 {[%emt 0:10:26]} 13. h5 {[%emt 0:08:45]} Ne7 {[%emt 0:00:51]} 14. Nh4 {[%emt 0:02:14]} (14. Bf4 $16) 14... O-O {[%emt 0:07:14]} 15. Qe2 {[%emt 0:11:23]} Rf6 {[%emt 0:04:42]} (15... Re8 $11) 16. Bd2 {[%emt 0:03:13]} e5 {[%emt 0:02:59]} 17. O-O-O {[%emt 0:01:06]} Rb8 {[%emt 0:01:13]} 18. Rdg1 {[%emt 0:01:17]} Rf7 {[%emt 0:03:43]} 19. Ng6 {[%emt 0:01:46]} Qa5 $2 {[%emt 0:01:25] [#]} (19... Nxg6 $16 {might work better.} 20. hxg6 Rf8) 20. Nxe7+ $2 {[%emt 0:01:05]} ({Only move:} 20. Nxe5 $18 Rf6 21. Nc4) 20... Bxe7 {[%emt 0:02:02]} (20... Rxe7 $11 {remains equal.} 21. Rh4 (21. Nd5 Qxa2 22. Nxe7+ Bxe7 $11) 21... Qd8) 21. Qxe5 $16 {[%emt 0:03:11]} Rb7 {[%emt 0:00:15]} 22. a3 {[%emt 0:03:20]} (22. Re1 $16) 22... Qa6 {[%emt 0:01:21]} (22... Qb6 $1 $11 {keeps the balance.} 23. Na4 Qb5) 23. f3 $2 {[%emt 0:04:02]} (23. Qf4 $16) 23... c4 $17 {[%emt 0:00:53]} 24. dxc4 $2 {[%emt 0:03:27][%mdl 8192] [#]} (24. Qd4 $17) 24... Bxa3 $1 $19 {[%emt 0:01:19][%mdl 512] Black is clearly winning.} 25. Qf4 {[%emt 0:04:47]} (25. bxa3 Qxa3+) 25... Bxb2+ {[%emt 0:00:38]} 26. Kd1 {[%emt 0:00:07]} Rfe7 {[%emt 0:00:51] Weighted Error Value: White=0.98/Black=0.30.  Loses game:     	White=1     	---        Missed win:     	White=1     	---        Mistake:       	White=3     	Black=4      Inaccurate:     	White=2     	Black=3      OK:         	White=5     	Black=4      Best:        	White=1     	Black=1      Brilliant:      	---       	Black=1} 0-1

[Event "FIDE WCCC Open-10 2024"]
[Site "Montesilvano"]
[Date "2024.11.22"]
[Round "7.43"]
[White "Tamiolakis, Grigorios"]
[Black "Vardanyan, Armen Art."]
[Result "0-1"]
[Annotator "NA RC"]
[ECO "D55"]
[WhiteElo "1591"]
[BlackElo "1735"]
[PlyCount "56"]
[EventDate "2024.11.18"]
[EventType "swiss"]
[EventCountry "ITA"]
[SourceTitle "playchess.com"]
[Source "ChessBase"]
[SourceQuality "1"]
[TimeControl "5400+30"]

1. d4 {[%emt 0:00:01]} d5 {[%emt 0:00:11]} 2. c4 {[%emt 0:00:06]} e6 {[%emt 0:00:07]} 3. Nf3 {[%emt 0:00:06]} Nf6 {[%emt 0:00:48]} 4. Bg5 {[%emt 0:00:06]} Be7 {[%emt 0:00:41]} 5. Nc3 {[%emt 0:00:12]} h6 {[%emt 0:00:21]} 6. Bxf6 {[%emt 0:00:16]} Bxf6 {[%emt 0:00:11]} 7. e3 {[%emt 0:00:31]} O-O {[%emt 0:00:16]} 8. Qc2 {[%emt 0:01:06]} b6 {[%emt 0:02:47]} 9. cxd5 {[%emt 0:00:18]} exd5 {[%emt 0:00:46]} 10. Be2 {[%emt 0:03:00]} Be6 {[%emt 0:02:37]} 11. O-O {[%emt 0:02:38]} Qe7 {[%emt 0:09:53]} 12. Rfd1 {[%emt 0:06:59]} c5 {[%emt 0:20:04]} 13. Ne5 {[%emt 0:19:56]} Bxe5 {[%emt 0:00:36]} 14. dxe5 {[%emt 0:00:29]} Nc6 {[%emt 0:02:31]} 15. Bf3 {[%emt 0:06:10]} Rad8 {[%emt 0:07:37]} 16. Bxd5 {[%emt 0:11:16]} Bxd5 {[%emt 0:00:18]} 17. Nxd5 {[%emt 0:00:08]} Qxe5 {[%emt 0:00:13]} 18. Nc3 {[%emt 0:00:54]} Qf6 {[%emt 0:04:05]} 19. a3 {[%emt 0:04:42]} Ne5 {[%emt 0:03:48]} 20. Rd5 {[%emt 0:07:19]} c4 {[%emt 0:01:35]} 21. Rxd8 {[%emt 0:09:00]} Rxd8 {[%emt 0:00:28]} 22. Rd1 {[%emt 0:04:09]} Rd3 {[%emt 0:00:40]} 23. f4 {[%emt 0:01:34]} Ng4 {[%emt 0:04:39]} 24. Rxd3 {[%emt 0:11:36]} cxd3 {[%emt 0:00:00]} 25. Qd2 {[%emt 0:00:53]} Qf5 {[%emt 0:01:18]} 26. e4 {[%emt 0:01:58]} Qc5+ {[%emt 0:00:09]} 27. Kf1 {[%emt 0:00:32]} Nxh2+ {[%emt 0:00:09]} 28. Ke1 {[%emt 0:00:23]} Qg1# {[%emt 0:00:00]} 0-1

[Event "FIDE WCCC Open-10 2024"]
[Site "Montesilvano"]
[Date "2024.11.22"]
[Round "7.45"]
[White "Yevsieiev, Yaroslav"]
[Black "Bulat, Mansur"]
[Result "0-1"]
[Annotator "NA RC"]
[ECO "C58"]
[WhiteElo "1706"]
[BlackElo "1610"]
[PlyCount "48"]
[EventDate "2024.11.18"]
[EventType "swiss"]
[EventCountry "ITA"]
[SourceTitle "playchess.com"]
[Source "ChessBase"]
[SourceQuality "1"]
[TimeControl "5400+30"]

1. e4 {[%emt 0:00:03]} e5 {[%emt 0:00:22]} 2. Nf3 {[%emt 0:00:09]} Nc6 {[%emt 0:00:24]} 3. Bc4 {[%emt 0:00:05]} Nf6 {[%emt 0:00:25]} 4. Ng5 {[%emt 0:00:03]} d5 {[%emt 0:00:55]} 5. exd5 {[%emt 0:00:08]} Na5 {[%emt 0:00:37]} 6. Bb5+ {[%emt 0:00:05]} c6 {[%emt 0:00:46]} 7. dxc6 {[%emt 0:00:04]} bxc6 {[%emt 0:00:57]} 8. Bd3 {[%emt 0:00:07]} Ng4 {[%emt 0:02:22]} 9. h4 {[%emt 0:00:31]} Bc5 {[%emt 0:01:21]} 10. Qf3 {[%emt 0:18:01]} Qe7 {[%emt 0:11:04]} 11. Ne4 {[%emt 0:03:17]} Bb6 {[%emt 0:07:00]} 12. b4 {[%emt 0:06:01]} Nb7 {[%emt 0:04:07]} 13. Nc5 {[%emt 0:00:15]} O-O {[%emt 0:03:58]} 14. Bf5 {[%emt 0:23:50]} Bxf5 {[%emt 0:09:16]} 15. Qxf5 {[%emt 0:01:01]} Nh6 {[%emt 0:00:45]} 16. Qg5 {[%emt 0:00:50]} f6 {[%emt 0:00:52]} 17. Qg3 {[%emt 0:01:41]} Nxc5 {[%emt 0:01:27]} 18. bxc5 {[%emt 0:00:09]} Bxc5 {[%emt 0:00:05]} 19. O-O {[%emt 0:01:45]} Nf5 {[%emt 0:02:51]} 20. Qh3 {[%emt 0:06:35]} Nd4 {[%emt 0:01:09]} 21. Ba3 {[%emt 0:08:35]} Kh8 {[%emt 0:03:17]} 22. Qd3 {[%emt 0:06:36]} Bxa3 {[%emt 0:03:27]} 23. Nxa3 {[%emt 0:00:14]} Rad8 {[%emt 0:02:24]} 24. Kh1 {[%emt 0:06:35]} Nb5 {[%emt 0:42:39]} 0-1

[Event "FIDE WCCC Open-10 2024"]
[Site "Montesilvano"]
[Date "2024.11.22"]
[Round "7.46"]
[White "DAmato, Raffaele"]
[Black "Shrubok, Herman"]
[Result "1-0"]
[Annotator "NA RC"]
[ECO "E61"]
[WhiteElo "1695"]
[BlackElo "1477"]
[PlyCount "107"]
[EventDate "2024.11.18"]
[EventType "swiss"]
[EventCountry "ITA"]
[SourceTitle "playchess.com"]
[Source "ChessBase"]
[SourceQuality "1"]
[TimeControl "5400+30"]

1. d4 {[%emt 0:00:01]} Nf6 {[%emt 0:00:13]} 2. Nf3 {[%emt 0:00:03]} g6 {[%emt 0:00:27]} 3. e3 {[%emt 0:00:07]} Bg7 {[%emt 0:00:28]} 4. Bd3 {[%emt 0:00:09]} O-O {[%emt 0:01:32]} 5. O-O {[%emt 0:02:13]} d6 {[%emt 0:01:42]} 6. c4 {[%emt 0:01:37]} Nbd7 {[%emt 0:02:15]} 7. Nc3 {[%emt 0:00:41]} e5 {[%emt 0:01:50]} 8. d5 {[%emt 0:05:03]} Nc5 {[%emt 0:01:32]} 9. e4 {[%emt 0:01:09]} a5 {[%emt 0:01:09]} 10. Be3 {[%emt 0:01:01]} Ne8 {[%emt 0:13:27]} 11. Bxc5 {[%emt 0:00:47]} dxc5 {[%emt 0:00:24]} 12. Ne1 {[%emt 0:01:16]} f5 {[%emt 0:01:35]} 13. f3 {[%emt 0:01:05]} fxe4 {[%emt 0:02:07]} 14. fxe4 {[%emt 0:03:57]} Nf6 {[%emt 0:01:24]} 15. Nf3 {[%emt 0:00:51]} Bg4 {[%emt 0:01:03]} 16. Be2 {[%emt 0:01:15]} Nh5 {[%emt 0:03:55]} 17. Nd2 {[%emt 0:03:58]} Bxe2 {[%emt 0:02:18]} 18. Nxe2 {[%emt 0:00:42]} Bh6 {[%emt 0:02:18]} 19. Nf3 {[%emt 0:01:13]} Qe7 {[%emt 0:00:50]} 20. Qb3 {[%emt 0:01:03]} b6 {[%emt 0:00:52]} 21. Qc3 {[%emt 0:01:30]} Rae8 {[%emt 0:00:43]} 22. Rad1 {[%emt 0:11:41]} Nf4 {[%emt 0:00:56]} 23. Nxf4 {[%emt 0:00:17]} Rxf4 {[%emt 0:00:06]} 24. Qe1 {[%emt 0:04:12]} Ref8 {[%emt 0:02:24]} 25. Rd3 {[%emt 0:02:26]} g5 {[%emt 0:02:58]} 26. g3 {[%emt 0:01:05]} R4f6 {[%emt 0:00:17]} 27. Nd2 {[%emt 0:05:32]} g4 {[%emt 0:00:52]} 28. Rxf6 {[%emt 0:01:03]} Rxf6 {[%emt 0:00:17]} 29. Nf1 {[%emt 0:00:36]} Qf7 {[%emt 0:00:50]} 30. Ne3 {[%emt 0:01:05]} Rf3 {[%emt 0:00:52]} 31. Nxg4 {[%emt 0:00:42]} Bg7 {[%emt 0:00:30]} 32. Rxf3 {[%emt 0:02:47]} Qxf3 {[%emt 0:00:10]} 33. Nf2 {[%emt 0:02:29]} Bh6 {[%emt 0:03:16]} 34. Qd1 {[%emt 0:01:03]} Qf8 {[%emt 0:00:20]} 35. Qg4+ {[%emt 0:02:10]} Kh8 {[%emt 0:00:33]} 36. Qf5 {[%emt 0:01:49]} Qxf5 {[%emt 0:01:20]} 37. exf5 {[%emt 0:00:03]} Be3 {[%emt 0:00:31]} 38. Kg2 {[%emt 0:00:24]} Kg7 {[%emt 0:00:27]} 39. Ne4 {[%emt 0:00:46]} Bd4 {[%emt 0:00:18]} 40. b3 {[%emt 0:00:15]} h6 {[%emt 0:02:38]} 41. g4 {[%emt 0:00:21]} Be3 {[%emt 0:00:24]} 42. h4 {[%emt 0:01:22]} Bf4 {[%emt 0:00:19]} 43. d6 {[%emt 0:02:36]} cxd6 {[%emt 0:00:30]} 44. Nxd6 {[%emt 0:00:08]} e4 {[%emt 0:00:07]} 45. Nxe4 {[%emt 0:00:23]} Bc7 {[%emt 0:00:28]} 46. g5 {[%emt 0:00:43]} hxg5 {[%emt 0:00:04]} 47. hxg5 {[%emt 0:00:08]} Be5 {[%emt 0:00:14]} 48. Kf3 {[%emt 0:00:27]} Bc7 {[%emt 0:00:10]} 49. Kg4 {[%emt 0:01:13]} Be5 {[%emt 0:00:08]} 50. Nf6 {[%emt 0:01:30]} Bb8 {[%emt 0:00:14]} 51. Nd5 {[%emt 0:00:14]} Ba7 {[%emt 0:00:16]} 52. f6+ {[%emt 0:37:19]} Kg6 {[%emt 0:00:31]} 53. Ne7+ {[%emt 0:00:00]} Kf7 {[%emt 0:00:11]} 54. Nc6 {[%emt 0:00:00]} 1-0